fUSD/lending_fUSD_20260321
["ID","MTS","AMOUNT","RATE_DAILY","PERIOD"]
[408684762,1774116640728,-175.674721,0.0001568,7]
[408684763,1774116640737,-160.0,0.0001568,7]
[408684765,1774116640747,-193.776019,0.0001568,7]
[408684767,1774116640756,-6007.0,0.00015684,2]
[408684769,1774116640765,-2466.0,0.00015684,2]
[408684771,1774116640774,-160.0,0.0001569,2]
[408684773,1774116640783,-160.0,0.0001569,2]
[408684775,1774116640792,-979.16666667,0.0001569,2]
[408684777,1774116640802,-400.0,0.00015769,2]
[408684779,1774116640811,-350.0,0.00015799,2]
[408684781,1774116640820,-350.0,0.00015829,3]
[408684783,1774116640829,-236.475275,0.00015835,7]
[408684785,1774116640839,-160.0,0.00015835,7]
[408684787,1774116640848,-400.0,0.00015835,2]
[408684789,1774116640858,-2422.0,0.00015845,2]
[408684791,1774116640867,-500.0,0.00015872,2]
[408684793,1774116640876,-4000.0,0.00015895,2]
[408684795,1774116640885,-3517.815,0.000159,2]
[408684797,1774116640894,-1715.0,0.000159,5]
[408684799,1774116640904,-400.0,0.00015922,2]
[408684801,1774116640913,-500.0,0.00015973,2]
[408684803,1774116640922,-500.0,0.00015973,2]
[408684805,1774116640932,-367.89307626,0.00015973,2]
[408684807,1774116640941,-192.21595619,0.0001599,2]
[408684809,1774116640950,-151.0,0.00015997,2]
[408684811,1774116640958,-284.204828,0.00015999,7]
[408684813,1774116640968,-155.0,0.00015999,2]
[408684815,1774116640977,-993571.29858291,0.00016,2]
[408684817,1774116640986,-150.0,0.00016,2]
[408684819,1774116640996,-3321.65235463,0.00016,2]
[408684821,1774116641005,-150.0,0.00016,2]
[408684823,1774116641015,-19890.75962487,0.00016,2]
[408684825,1774116641024,-150.0,0.00016,2]
[408684827,1774116641033,-480.12818358,0.00016,2]
[408684829,1774116641043,-1409399.44672256,0.00016,2]
[408684836,1774116641195,-1219.17117707,0.00016,2]
[408684837,1774116641206,-616.0,0.00016,2]
[408684988,1774116642688,-415.0,0.00015684,2]
[408684990,1774116642697,-367277.94292112,0.00016,2]
[408684992,1774116642709,-987.61314542,0.00016,2]
[408685013,1774116642893,-354166.98535629,0.00016,2]
[408685146,1774116645358,-934.00211632,0.00015549,2]
[408685147,1774116645367,-3576.93058913,0.00016,2]
[408685152,1774116664283,10000.01,0.00012735,2]
[408685153,1774116664309,10000.01,0.00012735,2]
[408685154,1774116664332,10000.01,0.00012735,2]
[408685155,1774116664353,10000.01,0.00012735,2]
[408685156,1774116664375,10000.01,0.00012735,2]
[408685157,1774116671592,-7766.7274883,0.00012735,2]
[408685158,1774116671681,-10000.01,0.00012735,2]
[408685159,1774116671824,-10000.01,0.00012735,2]
[408685160,1774116671922,-10000.01,0.00012735,2]
[408685161,1774116672022,-10000.01,0.00012735,2]
[408685166,1774116770591,-2310.646,0.0001248,2]
[408685167,1774116770618,-216.61,0.0001248,2]
[408685168,1774116770647,-593.88773541,0.00012635,2]
[408685169,1774116770675,-150.0,0.00012734,2]
[408685170,1774116770706,-300.0,0.00012734,2]
[408685171,1774116770795,-2857.72252918,0.00012735,2]
[408685172,1774116773537,-10000.01,0.00012735,2]
[408685173,1774116779733,-10000.01,0.00012735,2]
[408685178,1774116949560,5000.01,0.00012635,2]
[408685179,1774116949582,545.03340991,0.00012635,2]
[408685181,1774116974906,200.0,0.000127,2]
[408685182,1774116987157,-500.0,0.00012734,2]
[408685183,1774116987190,-500.0,0.00012734,2]
[408685184,1774116987223,-500.0,0.00012734,2]
[408685185,1774116987255,-500.0,0.00012734,2]
[408685186,1774116987288,-500.0,0.00012734,2]
[408685187,1774116987321,-500.0,0.00012734,2]
[408685188,1774116987351,-500.0,0.00012734,2]
[408685189,1774116987383,-500.0,0.00012734,2]
[408685190,1774116987414,-500.0,0.00012734,2]
[408685191,1774116987448,-500.0,0.00012734,2]
[408685192,1774116987790,-500.0,0.00012734,2]
[408685193,1774116987822,-362.5769884,0.00012734,2]
[408685194,1774116987854,-500.0,0.00012734,2]
[408685195,1774116987886,-500.0,0.00012734,2]
[408685196,1774116987917,-500.0,0.00012734,2]
[408685197,1774116987949,-500.0,0.00012734,2]
[408685198,1774116987980,-500.0,0.00012734,2]
[408685199,1774116988012,-500.0,0.00012734,2]
[408685200,1774116988043,-500.0,0.00012734,2]
[408685201,1774116988076,-500.0,0.00012734,2]
[408685202,1774116988369,-0.01,0.00012734,2]
[408685203,1774116988383,-274.8560232,0.00012734,2]
[408685204,1774116990058,-225.1339768,0.00012734,2]
[408685205,1774116990089,-500.0,0.00012734,2]
[408685206,1774116990120,-500.0,0.00012734,2]
[408685207,1774116990152,-500.0,0.00012734,2]
[408685208,1774116990183,-500.0,0.00012734,2]
[408685209,1774116990214,-500.0,0.00012734,2]
[408685210,1774116990247,-500.0,0.00012734,2]
[408685211,1774116990278,-500.0,0.00012734,2]
[408685212,1774116990308,-500.0,0.00012734,2]
[408685213,1774116990337,-500.0,0.00012734,2]
[408685214,1774116990366,-49.7420464,0.00012734,2]
[408685215,1774116990524,-450.2579536,0.00012734,2]
[408685216,1774116993132,-500.0,0.00012734,2]
[408685217,1774116993163,-500.0,0.00012734,2]
[408685218,1774116993195,-250.0,0.00012734,2]
[408685219,1774116993225,-483.44806507,0.00012734,2]
[408685220,1774116997318,-250.0,0.00012734,2]
[408685222,1774117014369,-456.0,0.00012734,2]
[408685223,1774117014397,-1200.0,0.00012734,2]
[408685224,1774117014423,-300.0,0.00012734,2]
[408685225,1774117014640,-150.0,0.00012734,2]
[408685226,1774117019965,605.85019815,0.00012635,2]
[408685227,1774117021433,300.0,0.00012734,2]
[408685228,1774117029416,-250.0,0.00012734,2]
[408685230,1774117082224,150.0,0.00012734,2]
[408685231,1774117083220,300.0,0.00012734,2]
[408685232,1774117084147,-9700.01,0.00012735,2]
[408685233,1774117090043,-10000.01,0.00012735,2]
[408685235,1774117109075,3906.50532531,0.00012635,2]
[408685237,1774117141171,300.0,0.00012734,2]
[408685238,1774117146770,173.0,0.00012735,2]
[408685239,1774117148241,170.50467469,0.00012735,2]
[408685240,1774117148262,11.49532531,0.00012735,2]
[408685241,1774117156314,-153.21414187,0.00012735,2]
[408685242,1774117156345,-5000.01,0.00012735,2]
[408685243,1774117156376,-5000.01,0.00012735,2]
[408685244,1774117156469,-5000.01,0.00012735,2]
[408685245,1774117158706,-5000.01,0.00012735,2]
[408685246,1774117158814,-1862.3592182,0.00012636,2]
[408685247,1774117158864,-1275.2915636,0.00012735,2]
[408685248,1774117158906,-5000.01,0.00012735,2]
[408685249,1774117159003,-5000.01,0.00012735,2]
[408685250,1774117159097,-5000.01,0.00012735,2]
[408685251,1774117159251,-5000.01,0.00012735,2]
[408685253,1774117201066,1200.0,0.00012734,2]
[408685255,1774117211758,797.96190315,0.00012726,2]
[408685256,1774117236830,-10000.01,0.00012735,2]
[408685257,1774117238192,661.4018,0.00012635,2]
[408685258,1774117242977,-10000.01,0.00012735,2]
[408685260,1774117261681,300.0,0.00012734,2]
[408685261,1774117262408,150.0,0.00012734,2]
[408685262,1774117266872,227.0,0.00012734,2]
[408685263,1774117268740,500.0,0.00012634,2]
[408685264,1774117279440,500.0,0.00012734,2]
[408685265,1774117279473,500.0,0.00012734,2]
[408685266,1774117279506,163.64629685,0.00012734,2]
[408685267,1774117279749,336.35370315,0.00012734,2]
[408685268,1774117279787,500.0,0.00012734,2]
[408685269,1774117279818,500.0,0.00012734,2]
[408685270,1774117279856,500.0,0.00012734,2]
[408685271,1774117279887,483.15880962,0.00012734,2]
[408685272,1774117279917,500.0,0.00012734,2]
[408685273,1774117279947,500.0,0.00012734,2]
[408685274,1774117279974,500.0,0.00012734,2]
[408685275,1774117280010,500.0,0.00012734,2]
[408685276,1774117280038,500.0,0.00012734,2]
[408685277,1774117280079,180.49748723,0.00012734,2]
[408685278,1774117280103,319.50251277,0.00012734,2]
[408685279,1774117280142,500.0,0.00012734,2]
[408685280,1774117280171,500.0,0.00012734,2]
[408685281,1774117280204,500.0,0.00012734,2]
[408685282,1774117280234,500.0,0.00012734,2]
[408685283,1774117280262,500.0,0.00012734,2]
[408685284,1774117280295,500.0,0.00012734,2]
[408685285,1774117280334,500.0,0.00012734,2]
[408685286,1774117280370,500.0,0.00012734,2]
[408685287,1774117280400,500.0,0.00012734,2]
[408685288,1774117280431,180.50748723,0.00012734,2]
[408685289,1774117280455,319.49251277,0.00012734,2]
[408685290,1774117280656,500.0,0.00012734,2]
[408685291,1774117280689,500.0,0.00012734,2]
[408685292,1774117280718,500.0,0.00012734,2]
[408685293,1774117280748,500.0,0.00012734,2]
[408685294,1774117280879,500.0,0.00012734,2]
[408685295,1774117281026,500.0,0.00012734,2]
[408685296,1774117281074,500.0,0.00012734,2]
[408685297,1774117281245,500.0,0.00012734,2]
[408685298,1774117281276,500.0,0.00012734,2]
[408685299,1774117281355,180.51748723,0.00012734,2]
[408685300,1774117281380,319.48251277,0.00012734,2]
[408685301,1774117281437,500.0,0.00012734,2]
[408685302,1774117281510,500.0,0.00012734,2]
[408685303,1774117281803,500.0,0.00012734,2]
[408685304,1774117282140,500.0,0.00012734,2]
[408685305,1774117293164,1848.517,0.0001248,2]
[408685306,1774117294940,483.15880961,0.00012734,2]
[408685308,1774117300002,348.85167762,0.00012635,2]
[408685309,1774117300023,635.81697986,0.00012635,2]
[408685310,1774117319174,1480.1,0.00012635,2]
[408685311,1774117321179,300.0,0.00012734,2]
[408685312,1774117332033,500.0,0.00012735,2]
[408685313,1774117332614,500.0,0.00012735,2]
[408685314,1774117333233,500.0,0.00012735,2]
[408685315,1774117333818,500.0,0.00012735,2]
[408685316,1774117334525,532.10249534,0.00012735,2]
[408685318,1774117335763,51.9905248,0.00012635,2]
[408685319,1774117335785,5000.01,0.00012635,2]
[408685320,1774117335806,2244.73708461,0.00012635,2]
[408685321,1774117337624,151.0,0.00012735,2]
[408685322,1774117337661,200.0,0.00012735,2]
[408685323,1774117338220,151.0,0.00012735,2]
[408685324,1774117338815,151.0,0.00012735,2]
[408685325,1774117338912,500.0,0.00012735,2]
[408685326,1774117339404,151.0,0.00012735,2]
[408685327,1774117339572,500.0,0.00012735,2]
[408685328,1774117339996,151.0,0.00012735,2]
[408685329,1774117340119,500.0,0.00012735,2]
[408685330,1774117340581,151.0,0.00012735,2]
[408685331,1774117340608,149.27291539,0.00012735,2]
[408685332,1774117340635,1.72708461,0.00012735,2]
[408685333,1774117340703,414.35315363,0.00012735,2]
[408685334,1774117341283,151.0,0.00012735,2]
[408685335,1774117341313,151.0,0.00012735,2]
[408685336,1774117341784,151.0,0.00012735,2]
[408685337,1774117341811,151.0,0.00012735,2]
[408685338,1774117342556,151.0,0.00012735,2]
[408685339,1774117342581,151.0,0.00012735,2]
[408685340,1774117343008,151.0,0.00012735,2]
[408685341,1774117343038,151.0,0.00012735,2]
[408685342,1774117343612,151.0,0.00012735,2]
[408685343,1774117343643,151.0,0.00012735,2]
[408685344,1774117344232,151.0,0.00012735,2]
[408685345,1774117344259,151.0,0.00012735,2]
[408685346,1774117344855,151.0,0.00012735,2]
[408685347,1774117345494,151.0,0.00012735,2]
[408685348,1774117346122,151.0,0.00012735,2]
[408685349,1774117346853,151.0,0.00012735,2]
[408685350,1774117347383,151.0,0.00012735,2]
[408685351,1774117349188,-151.0,0.00012735,2]
[408685352,1774117349218,-151.0,0.00012735,2]
[408685353,1774117349460,-151.0,0.00012735,2]
[408685354,1774117349470,-1261.92976176,0.00012735,2]
[408685355,1774117349528,-5000.01,0.00012735,2]
[408685356,1774117349541,-5000.01,0.00012735,2]
[408685357,1774117349566,-5000.01,0.00012735,2]
[408685358,1774117349650,-5000.01,0.00012735,2]
[408685359,1774117349777,-5000.01,0.00012735,2]
[408685360,1774117349880,-5000.01,0.00012735,2]
[408685361,1774117350005,-5000.01,0.00012735,2]
[408685363,1774117382537,171.89,0.00010975,2]
[408685364,1774117383166,4828.12,0.00012671,2]
[408685365,1774117383191,2350.392608,0.00012671,2]
[408685367,1774117410050,303.02233026,0.00011866,2]
[408685369,1774117446719,173.0,0.00012615,2]
[408685370,1774117448337,182.0,0.00012615,2]
[408685372,1774117489068,338.0,0.00010395,2]
[408685373,1774117489772,338.0,0.00011133,2]
[408685374,1774117490471,338.8242809,0.0001169,2]
[408685375,1774117506835,173.0,0.00012615,2]
[408685377,1774117548356,-3515.85479277,0.00012635,2]
[408685379,1774117580248,861.58507533,0.00012635,2]
[408685380,1774117591275,2110.0,0.00012572,2]
[408685381,1774117591771,500.0,0.0001257,2]
[408685382,1774117604748,300.0,0.00012572,2]
[408685384,1774117611666,-1285.76222802,0.00012636,2]
[408685385,1774117611694,-271.32353496,0.00012636,2]
[408685386,1774117626850,-200.0,0.00012699,2]
[408685387,1774117627142,-300.0,0.00012733,2]
[408685388,1774117627167,-21.00594754,0.00012733,2]
[408685389,1774117635677,1834.29,0.00012669,2]
[408685390,1774117642009,-138.99405246,0.00012733,2]
[408685392,1774117660956,857.17481868,0.00012636,2]
[408685393,1774117669563,-179.21380524,0.00012734,2]
[408685395,1774117710799,309.43671847,0.000125,2]
[408685396,1774117716874,-1000.0,0.00012734,2]
[408685397,1774117719957,-300.0,0.00012734,2]
[408685398,1774117719989,-300.0,0.00012734,2]
[408685399,1774117720019,-1200.0,0.00012734,2]
[408685400,1774117720047,-150.0,0.00012734,2]
[408685401,1774117720075,-300.0,0.00012734,2]
[408685402,1774117722115,5500.01,0.00012635,2]
[408685403,1774117722138,2184.06875542,0.00012635,2]
[408685405,1774117735475,-207.9004718,0.00012735,2]
[408685406,1774117735504,-151.0,0.00012735,2]
[408685407,1774117735532,-151.0,0.00012735,2]
[408685408,1774117735560,-151.0,0.00012735,2]
[408685409,1774117735587,-151.0,0.00012735,2]
[408685410,1774117735614,-151.0,0.00012735,2]
[408685411,1774117735642,-151.0,0.00012735,2]
[408685412,1774117735670,-151.0,0.00012735,2]
[408685413,1774117735697,-151.0,0.00012735,2]
[408685414,1774117735724,-151.0,0.00012735,2]
[408685415,1774117735751,-151.0,0.00012735,2]
[408685416,1774117735779,-151.0,0.00012735,2]
[408685417,1774117735806,-151.0,0.00012735,2]
[408685418,1774117735833,-151.0,0.00012735,2]
[408685419,1774117735861,-151.0,0.00012735,2]
[408685420,1774117735889,-151.0,0.00012735,2]
[408685421,1774117735916,-263.16323984,0.00012735,2]
[408685422,1774117737542,4527.88257672,9.5e-05,3]
[408685423,1774117737565,10000.01,9.5e-05,3]
[408685424,1774117737590,10000.01,9.5e-05,3]
[408685425,1774117737613,10000.01,9.5e-05,3]
[408685426,1774117737637,10000.01,9.5e-05,3]
[408685427,1774117737661,10000.01,9.5e-05,3]
[408685428,1774117737683,5000.01,9.5e-05,3]
[408685429,1774117737705,5000.01,9.5e-05,3]
[408685430,1774117737727,5000.01,9.5e-05,3]
[408685431,1774117737749,5000.01,9.5e-05,3]
[408685432,1774117737776,160962.50713867,9.5e-05,3]
[408685433,1774117738669,-2444.834414,0.00012671,2]
[408685434,1774117739076,-110.341172,0.00012671,2]
[408685436,1774117755097,-300.0,0.00012734,2]
[408685437,1774117755120,-1639.2485316,0.00012735,2]
[408685439,1774117781387,10000.01,0.00012635,2]
[408685440,1774117781414,10000.01,0.00012635,2]
[408685453,1774117831599,-544.02,0.0001257,2]
[408685454,1774117831714,-6987.389306,0.0001257,2]
[408685455,1774117831728,-531.9746021,0.00012625,2]
[408685456,1774117831741,-300.0,0.00012634,2]
[408685457,1774117831755,-1200.0,0.00012634,2]
[408685458,1774117831771,-300.0,0.00012634,2]
[408685459,1774117831782,-150.0,0.00012634,2]
[408685460,1774117831793,-254.0,0.00012634,2]
[408685461,1774117831803,-1714.34963732,0.00012634,2]
[408685462,1774117831814,-76357.02288937,0.00012635,2]
[408685463,1774117831828,-1254.41808677,0.00012635,2]
[408685464,1774117831847,-823.641,0.00012635,2]
[408685465,1774117831863,-1712.27356767,0.00012635,2]
[408685474,1774117837608,-2327645.63775619,0.00012635,2]
[408685475,1774117837619,-28950.03,0.00012635,2]
[408685476,1774117837630,-173.0,0.00012635,3]
[408685477,1774117837641,-841.96406,0.00012636,2]
[408685478,1774117837652,-500.0,0.00012734,2]
[408685479,1774117837662,-366.12709315,0.00012734,2]
[408685480,1774117837674,-500.0,0.00012734,2]
[408685481,1774117837684,-500.0,0.00012734,2]
[408685482,1774117837695,-197.36658827,0.00012734,2]
[408685483,1774117837706,-500.0,0.00012734,2]
[408685484,1774117837716,-592.83907362,0.00012734,2]
[408685485,1774117837727,-245.10987781,0.00012734,2]
[408685486,1774117837738,-500.0,0.00012734,2]
[408685487,1774117837748,-500.0,0.00012734,2]
[408685488,1774117837759,-500.0,0.00012734,2]
[408685489,1774117837769,-500.0,0.00012734,2]
[408685490,1774117837780,-500.0,0.00012734,2]
[408685491,1774117837791,-500.0,0.00012734,2]
[408685492,1774117837802,-500.0,0.00012734,2]
[408685493,1774117837813,-500.0,0.00012735,2]
[408685495,1774117837824,-500.0,0.00012735,2]
[408685497,1774117837835,-500.0,0.00012735,2]
[408685498,1774117837846,-500.0,0.00012735,2]
[408685499,1774117837857,-500.0,0.00012735,2]
[408685500,1774117837868,-500.0,0.00012735,2]
[408685502,1774117837879,-278.70601775,0.00012735,2]
[408685504,1774117837889,-500.0,0.00012735,2]
[408685506,1774117837900,-500.0,0.00012735,2]
[408685508,1774117837911,-500.0,0.00012735,2]
[408685510,1774117837922,-500.0,0.00012735,2]
[408685512,1774117837932,-500.0,0.00012735,2]
[408685514,1774117837942,-500.0,0.00012735,2]
[408685516,1774117837952,-445.09421242,0.00012735,2]
[408685518,1774117837962,-358.3825325,0.00012735,2]
[408685520,1774117837971,-500.0,0.00012735,2]
[408685523,1774117837981,-500.0,0.00012735,2]
[408685525,1774117837990,-500.0,0.00012735,2]
[408685527,1774117838000,-500.0,0.00012735,2]
[408685529,1774117838010,-526.04756448,0.00012735,2]
[408685531,1774117838020,-500.0,0.00012735,2]
[408685533,1774117838029,-200.60653321,0.00012735,2]
[408685535,1774117838039,-286.25,0.00012735,2]
[408685536,1774117838049,-500.0,0.00012735,2]
[408685561,1774117838272,-815476.2301,0.00012736,2]
[408685565,1774117838294,-4334.8442,0.00012736,2]
[408685567,1774117838305,-7966.15,0.00012773,2]
[408685569,1774117838314,-150.99,0.00012773,2]
[408685571,1774117838323,-150.99,0.00012773,2]
[408685573,1774117838332,-9999.99,0.00012773,2]
[408685575,1774117838341,-7821.72,0.00012773,2]
[408685577,1774117838350,-500.0,0.00012773,2]
[408685579,1774117838359,-1852.42,0.00012894,2]
[408685581,1774117838368,-3515.85479274,0.00012998,2]
[408685583,1774117838378,-7684.07875541,0.00012998,2]
[408685585,1774117838387,-286.25,0.00013009,2]
[408685587,1774117838396,-924.75951825,0.00013135,2]
[408685589,1774117838405,-271.32353495,0.0001318,2]
[408685591,1774117838415,-207.27750022,0.00013235,2]
[408685593,1774117838425,-405.37,0.00013283,2]
[408685594,1774117838439,-9999.99,0.00013283,2]
[408685597,1774117838449,-286.27,0.00013283,2]
[408685598,1774117838458,-4008.07401729,0.00013318,2]
[408685600,1774117838467,-3515.85479274,0.00013361,2]
[408685602,1774117838477,-7684.07875541,0.00013361,2]
[408685605,1774117838488,-1650.75,0.00013699,2]
[408685606,1774117838496,-185.23,0.00013703,2]
[408685608,1774117838507,-3515.85479274,0.00013723,2]
[408685610,1774117838515,-7684.07875541,0.00013723,2]
[408685612,1774117838524,-271.32353495,0.00013724,2]
[408685614,1774117838534,-255.0,0.00013733,2]
[408685616,1774117838543,-200.0,0.0001376,2]
[408685619,1774117838554,-92286.5,0.00013783,2]
[408685621,1774117838563,-465.11,0.00013789,2]
[408685622,1774117838573,-420.0,0.0001386,2]
[408685625,1774117838583,-1680.0,0.00013897,2]
[408685627,1774117838593,-250.0,0.00013897,2]
[408685628,1774117838604,-564.59,0.000139,2]
[408685630,1774117838613,-907.13,0.000139,2]
[408685632,1774117838623,-228.81,0.000139,2]
[408685634,1774117838632,-794.32,0.000139,2]
[408685636,1774117838641,-500.0,0.00013923,2]
[408685638,1774117838655,-6679.7,0.00013923,2]
[408685640,1774117838664,-9859.71,0.00013932,2]
[408685642,1774117838674,-507.0,0.00014,2]
[408685644,1774117838684,-2162.08,0.00014027,2]
[408685646,1774117838693,-3515.85479274,0.00014086,2]
[408685649,1774117838703,-7684.07875541,0.00014086,2]
[408685650,1774117838713,-271.32353495,0.00014268,2]
[408685652,1774117838722,-841.96406,0.00014268,2]
[408685654,1774117838733,-262.7,0.00014321,2]
[408685657,1774117838743,-166.72,0.0001434,2]
[408685659,1774117838752,-1000.0,0.00014366,2]
[408685661,1774117838763,-1650.75,0.00014384,2]
[408685663,1774117838771,-2403.0,0.000144,2]
[408685665,1774117838781,-1568.0,0.000144,2]
[408685667,1774117838791,-3515.85479274,0.00014449,2]
[408685668,1774117838800,-7684.07875541,0.00014449,2]
[408685670,1774117838811,-500.0,0.00014461,2]
[408685673,1774117838822,-500.0,0.00014461,2]
[408685675,1774117838831,-500.0,0.00014461,2]
[408685677,1774117838840,-500.0,0.00014461,2]
[408685678,1774117838849,-500.0,0.00014461,2]
[408685680,1774117838858,-500.0,0.00014461,2]
[408685682,1774117838867,-500.0,0.00014461,2]
[408685685,1774117838877,-500.0,0.00014461,2]
[408685686,1774117838886,-500.0,0.00014461,2]
[408685688,1774117838895,-500.0,0.00014461,2]
[408685690,1774117838905,-500.0,0.00014461,2]
[408685692,1774117838915,-500.0,0.00014461,2]
[408685694,1774117838924,-500.0,0.00014493,2]
[408685696,1774117838934,-3515.85479274,0.00014812,2]
[408685698,1774117838943,-7684.07875541,0.00014812,2]
[408685700,1774117838952,-271.32353495,0.00014812,2]
[408685702,1774117838962,-166.72,0.00014932,2]
[408685704,1774117838971,-433.0,0.00014933,2]
[408685706,1774117838980,-250.0,0.00015,2]
[408685708,1774117838990,-1568.0,0.0001504,2]
[408685710,1774117838999,-1650.75,0.00015068,2]
[408685711,1774117839008,-3515.85479274,0.00015174,2]
[408685712,1774117839018,-7684.07875541,0.00015174,2]
[408685713,1774117839028,-587.0,0.00015206,2]
[408685714,1774117839038,-979.16666667,0.00015282,2]
[408685715,1774117839049,-160.0,0.00015282,2]
[408685716,1774117839059,-2351.0,0.00015287,2]
[408685717,1774117839069,-271.32353495,0.00015356,2]
[408685718,1774117839079,-2398.0,0.0001536,2]
[408685719,1774117839088,-2401.0,0.0001536,2]
[408685720,1774117839098,-166.72,0.00015524,2]
[408685721,1774117839108,-3515.85479274,0.00015537,2]
[408685722,1774117839118,-7684.07875541,0.00015537,2]
[408685723,1774117839128,-557.0,0.00015576,2]
[408685724,1774117839138,-557.0,0.0001561,2]
[408685725,1774117839147,-557.0,0.00015653,2]
[408685726,1774117839157,-175.674721,0.0001568,7]
[408685727,1774117839166,-160.0,0.0001568,7]
[408685728,1774117839175,-205.127222,0.0001568,7]
[408685729,1774117839185,-160.0,0.0001568,7]
[408685730,1774117839194,-164.101777,0.0001568,7]
[408685731,1774117839204,-160.0,0.0001568,7]
[408685732,1774117839213,-236.475275,0.0001568,7]
[408685734,1774117839222,-160.0,0.0001568,7]
[408685735,1774117839231,-557.0,0.00015721,2]
[408685736,1774117839241,-453.74,0.00015742,2]
[408685737,1774117839250,-453.73,0.00015742,2]
[408685739,1774117839260,-436.18,0.00015753,2]
[408685741,1774117839269,-1650.75,0.00015753,2]
[408685743,1774117839278,-168.0,0.00015755,2]
[408685745,1774117839288,-436.18,0.00015841,2]
[408685747,1774117839297,-500.0,0.00015872,2]
[408685749,1774117839307,-250.0,0.0001588,2]
[408685751,1774117839316,-2000.0,0.0001589,2]
[408685753,1774117839326,-3515.85479274,0.000159,2]
[408685755,1774117839335,-271.32353495,0.000159,2]
[408685757,1774117839344,-7684.07875541,0.000159,2]
[408685759,1774117839354,-631.4293198,0.000159,2]
[408685761,1774117839363,-841.96406,0.000159,2]
[408685763,1774117839374,-1093.0,0.000159,5]
[408685765,1774117839383,-873.0,0.000159,5]
[408685767,1774117839392,-436.18,0.00015942,2]
[408685769,1774117839402,-465.11,0.00015952,2]
[408685770,1774117839411,-531.9746021,0.00015963,2]
[408685771,1774117839420,-6945.0,0.00015973,2]
[408685772,1774117839436,-4453.0,0.00015973,2]
[408685773,1774117839446,-500.0,0.00015973,2]
[408685774,1774117839455,-283.16380875,0.00015973,2]
[408685775,1774117839465,-500.0,0.00015973,2]
[408685776,1774117839478,-500.0,0.00015973,2]
[408685777,1774117839488,-500.0,0.00015973,2]
[408685778,1774117839498,-500.0,0.00015973,2]
[408685779,1774117839508,-210.30338749,0.00015973,2]
[408685780,1774117839517,-500.0,0.00015973,2]
[408685781,1774117839527,-500.0,0.00015973,2]
[408685782,1774117839536,-500.0,0.00015973,2]
[408685783,1774117839546,-357.55340388,0.00015973,2]
[408685784,1774117839555,-500.0,0.00015973,2]
[408685785,1774117839565,-459.51301064,0.00015973,2]
[408685786,1774117839575,-166.21278402,0.00015973,2]
[408685787,1774117839585,-21968.3454658,0.0001598,2]
[408685788,1774117839594,-218.0,0.00015985,2]
[408685789,1774117839604,-531.9746021,0.0001599,2]
[408685790,1774117839613,-151.0,0.00015997,2]
[408685791,1774117839623,-182574.53955551,0.00016,2]
[408685792,1774117839636,-435.42617794,0.00016,2]
[408685793,1774117839876,-3459.58406542,0.00016,2]
[408685794,1774117840048,-94510.02719594,0.00016,2]